bitfinex-derivatives/quotes_ETHF0:USTF0_20250213
["timestamp","ask_amount","ask_price","bid_price","bid_amount"]
[1739465746029,3.2078,2623.7,2623.6,0.7622]
[1739465746426,0.76213,2623.9,2623.7,0.76215]
[1739465746630,5.0378,2624.0,2623.3,7.49253307]
[1739465746826,5.79988,2624.0,2623.9,0.76211]
[1739465747031,5.0378,2624.0,2623.9,0.76211]
[1739465747534,0.76212,2623.9,2623.7,0.76214]
[1739465747732,5.0378,2624.0,2623.3,4.28473307]
[1739465747928,5.0378,2624.0,2623.6,0.76219]
[1739465748128,0.7622,2623.6,2623.5,0.7622]
[1739465748333,0.7622,2623.6,2623.4,0.76223]
[1739465748334,0.76222,2623.6,2623.4,0.76223]
[1739465748831,0.59,2623.9,2623.3,1.1695]
[1739465749534,0.76214,2623.8,2623.7,0.76215]
[1739465749732,0.76213,2623.9,2623.7,0.76215]
[1739465750127,5.0378,2624.0,2623.3,4.28473307]
[1739465750334,0.76211,2623.9,2623.7,0.76215]
[1739465750939,5.0378,2624.0,2623.7,0.76215]
[1739465751329,5.0378,2624.0,2623.3,4.28473307]
[1739465751532,3.2078,2623.6,2623.5,0.76222]
[1739465751839,3.97,2623.6,2623.5,0.76222]
[1739465752334,3.2078,2623.6,2623.5,0.76222]
[1739465752928,3.2078,2623.9,2623.3,4.28473307]
[1739465753332,3.2078,2623.6,2623.5,0.76222]
[1739465753935,3.2078,2623.6,2623.3,1.1695]
[1739465754137,5.11332,2623.6,2623.1,0.5932]
[1739465754342,0.76229,2623.3,2623.2,0.76229]
[1739465754636,3.2078,2623.3,2622.7,3.2078]
[1739465754829,1.83,2623.4,2622.7,3.2078]
[1739465754830,6.32303307,2623.0,2622.7,0.5657]
[1739465755032,0.76243,2622.8,2622.7,0.5657]
[1739465755942,0.5748,2622.9,2622.5,1.1147]
[1739465756142,3.2078,2622.7,2622.2,0.5677]
[1739465756343,3.2078,2622.7,2622.6,0.76249]
[1739465756838,2.4048,2622.9,2622.2,1.6838]
[1739465757036,5.0378,2623.0,2622.4,3.11523307]
[1739465757433,6.32303307,2622.7,2622.0,40.8]
[1739465757640,3.2078,2622.7,2622.1,3.11523307]
[1739465758540,3.2078,2622.7,2622.6,0.76249]
[1739465759046,5.6126,2623.0,2622.4,3.11523307]
[1739465759246,3.2078,2622.7,2622.5,1.7391]
[1739465759439,3.2078,2622.7,2622.6,0.76249]
[1739465759742,4.54499,2623.0,2622.8,0.76241]
[1739465759933,3.2078,2623.0,2622.5,1.7391]
[1739465760136,3.2078,2623.0,2622.9,0.7624]
[1739465760333,0.00571897,2623.1,2623.0,0.76237]
[1739465760732,0.00571897,2623.1,2622.7,8.22917307]
[1739465760733,0.00571897,2623.1,2622.7,6.32303307]
[1739465760944,0.00571897,2623.1,2622.7,3.2078]
[1739465761136,3.2078,2622.8,2622.5,1.7391]
[1739465761743,0.76249,2622.6,2622.5,1.7391]
[1739465762443,3.97025,2622.8,2622.5,1.1548]
[1739465762644,3.2078,2622.8,2622.5,1.1548]
[1739465762944,3.2078,2622.8,2622.7,0.76246]
[1739465763139,0.00571897,2623.1,2622.7,3.2078]
[1739465763333,0.00571897,2623.1,2623.0,3.87760307]
[1739465763536,3.2078,2623.6,2623.5,0.76222]
[1739465763941,3.97001,2623.6,2623.2,40.8]
[1739465764146,3.2078,2623.6,2623.5,0.76222]
[1739465764346,3.2078,2624.0,2623.3,3.69273307]
[1739465764647,3.2078,2624.0,2623.6,3.11523307]
[1739465764839,0.76783897,2623.9,2623.6,3.11523307]
[1739465765041,0.00571897,2623.9,2623.8,0.76214]
[1739465765842,3.13885995,2624.0,2623.9,0.76211]
[1739465766051,3.13885995,2624.0,2623.9,3.87734307]
[1739465766746,3.2078,2624.3,2623.9,3.11523307]
[1739465766944,3.7812,2624.6,2624.0,0.6046]
[1739465767249,0.76767897,2624.4,2624.2,0.76201]
[1739465767445,0.00571897,2624.4,2624.0,0.6046]
[1739465767643,0.00571897,2624.4,2624.3,0.76199]
[1739465768145,0.76768897,2624.4,2624.2,0.76201]
[1739465768445,0.76768897,2624.4,2624.0,0.6046]
[1739465768649,0.00571897,2624.4,2624.0,0.6046]
[1739465768845,0.76203,2624.2,2624.0,1.36667]
[1739465769057,0.00571897,2624.4,2624.0,1.1695]
[1739465769246,0.00571897,2624.4,2624.3,0.76199]
[1739465771344,0.00571897,2624.4,2624.3,3.96979]
[1739465773051,0.00571897,2624.4,2624.3,4.51579]
[1739465773251,8.97e-06,2624.4,2624.3,4.51579]
[1739465773842,8.97e-06,2624.4,2624.3,1.30799]
[1739465774246,8.97e-06,2624.4,2624.3,4.51579]
[1739465774450,0.76196897,2624.4,2624.3,2.375]
[1739465774646,8.97e-06,2624.4,2624.3,1.30799]
[1739465775255,8.97e-06,2624.4,2624.3,4.51579]
[1739465775651,8.97e-06,2624.4,2624.3,1.30799]
[1739465776555,8.97e-06,2624.4,2624.3,0.546]
[1739465776850,8.97e-06,2624.4,2624.3,0.76199]
[1739465777057,0.76204,2624.2,2624.0,4.3773]
[1739465777254,0.76204,2624.2,2624.1,0.76203]
[1739465777657,0.5929,2624.3,2624.2,0.76202]
[1739465778555,1.35489,2624.3,2624.2,0.76202]
[1739465778956,0.5929,2624.3,2624.2,0.76202]
[1739465779456,1.35489,2624.3,2624.2,0.76202]
[1739465779660,0.5929,2624.3,2624.2,0.76202]
[1739465780554,8.97e-06,2624.4,2624.3,0.76199]
[1739465781553,0.76196897,2624.4,2624.3,0.76199]
[1739465782057,8.97e-06,2624.4,2624.3,0.76199]
[1739465783454,8.97e-06,2624.4,2624.3,1.31569]
[1739465784062,8.97e-06,2624.4,2624.3,42.11569]
[1739465788957,8.97e-06,2624.4,2624.3,1.31569]
[1739465789154,8.97e-06,2624.4,2624.3,0.76199]
[1739465789354,1.32916897,2624.4,2624.3,0.76199]
[1739465789956,0.56720897,2624.4,2624.3,0.76199]
[1739465791957,1.32916897,2624.4,2624.3,0.76199]
[1739465792164,0.56720897,2624.4,2623.9,45.74323307]
[1739465792365,1.31809,2624.3,2624.2,0.76199]
[1739465792667,0.5561,2624.3,2623.9,3.11523307]
[1739465792965,0.76211,2623.9,2623.8,0.76213]
[1739465793157,3.2078,2624.0,2623.6,43.91523307]
[1739465793363,1.33895,2623.8,2623.7,0.76217]
[1739465793553,0.76217,2623.7,2623.6,0.76218]
[1739465793759,0.76222,2623.5,2623.4,0.00571897]
[1739465794366,4.3252,2623.7,2623.4,0.00571897]
[1739465794664,0.7622,2623.6,2623.4,0.76795897]
[1739465794869,4.3252,2623.7,2623.4,0.00571897]
[1739465795261,5.08739,2623.7,2623.5,0.76221]
[1739465795470,4.3252,2623.7,2623.5,0.76221]
[1739465795762,5.08738,2623.7,2623.5,0.76221]
[1739465795963,5.08738,2623.7,2623.4,0.00571897]
[1739465796159,0.76221,2623.6,2623.4,0.76795897]
[1739465796355,0.5768,2623.8,2623.4,0.00571897]
[1739465796662,0.5768,2623.8,2623.7,0.76217]
[1739465797069,3.7902,2624.1,2624.0,0.76208]
[1739465797272,3.7913,2624.1,2624.0,0.76208]
[1739465798161,8.97e-06,2624.4,2624.3,0.76199]
[1739465798366,0.76196897,2624.4,2624.3,0.76199]
[1739465798572,8.97e-06,2624.4,2624.3,0.76199]
[1739465800464,8.97e-06,2624.4,2624.2,3.11523307]
[1739465800656,8.97e-06,2624.4,2624.2,3.87724307]
[1739465800657,0.76199,2624.3,2624.2,3.87724307]
[1739465801169,3.20780897,2624.4,2624.2,3.11523307]
[1739465801364,3.20780897,2624.4,2624.3,0.76199]
[1739465801564,3.20780897,2624.4,2624.2,3.87724307]
[1739465801865,0.76199,2624.3,2624.2,3.87724307]
[1739465802463,0.76204,2624.2,2624.1,0.76203]
[1739465802859,3.20780897,2624.4,2623.9,6.32303307]
[1739465803264,0.76202,2624.2,2624.1,0.76205]
[1739465803463,3.20780897,2624.4,2623.9,6.32303307]
[1739465803464,3.20780897,2624.4,2624.3,0.76199]
[1739465804463,8.97e-06,2624.4,2624.3,0.76199]
[1739465804857,8.97e-06,2624.4,2624.3,1.31899]
[1739465805672,8.97e-06,2624.4,2624.3,7.31899]
[1739465805975,0.76174,2625.2,2624.5,1.90481]
[1739465806176,1.1353,2625.3,2624.9,3.11523307]
[1739465806362,3.2078,2625.2,2624.8,0.76184]
[1739465806571,0.76182,2624.9,2624.8,0.76184]
[1739465806770,0.76183,2624.9,2624.8,0.76182]
[1739465806965,0.76187,2624.8,2624.7,0.76187]
[1739465807165,0.76187,2624.8,2624.6,43.92095204]
[1739465807166,0.76188,2624.7,2624.6,44.68283204]
[1739465807374,0.76186,2624.8,2624.7,0.76185]
[1739465807975,3.2078,2624.9,2624.8,0.76185]
[1739465810078,0.00571897,2625.1,2625.0,0.76179]
[1739465810877,0.00571897,2625.1,2624.8,0.6046]
[1739465811179,3.2078,2625.0,2624.6,6.32875204]
[1739465811382,0.76187,2624.8,2624.7,0.76186]
[1739465811679,0.76187,2624.8,2624.6,6.32875204]
[1739465811680,0.76184,2624.9,2624.8,0.76182]
[1739465812473,3.2078,2625.0,2624.6,6.32875204]
[1739465812674,3.2078,2625.0,2624.9,0.76182]
[1739465813185,3.2078,2625.0,2624.9,3.87705307]
[1739465814492,0.00571897,2625.1,2624.9,3.11523307]
[1739465814691,0.00571897,2625.1,2625.0,1.31149]
[1739465815387,0.00571897,2625.1,2625.0,2.43429]
[1739465817487,0.00571897,2625.1,2625.0,1.31149]
[1739465819390,0.76747897,2625.1,2625.0,0.76179]
[1739465819598,0.76179,2625.0,2624.9,3.87702307]
[1739465819791,0.76179,2625.0,2624.9,0.76179]
[1739465820191,0.57331897,2625.1,2624.7,1.90469]
[1739465820397,0.57331897,2625.1,2625.0,0.76179]
[1739465820798,0.76179,2625.0,2624.9,3.87702307]
[1739465821097,1.90455,2625.0,2624.6,0.00571897]
[1739465821299,3.2078,2624.7,2624.4,0.76194]
[1739465821501,0.76193,2624.5,2624.4,0.76194]
[1739465821792,1.1475,2624.6,2624.3,3.11523307]
[1739465821998,0.76195,2624.5,2624.4,0.76195]
[1739465822198,1.1475,2624.6,2624.3,3.11523307]
[1739465822395,1.1475,2624.6,2624.5,0.76193]
[1739465822595,3.8104,2625.0,2624.9,0.76182]
[1739465822800,4.3829,2625.0,2624.9,0.76182]
[1739465822991,4.3829,2625.0,2624.7,3.11523307]
[1739465823294,4.3829,2625.0,2624.8,0.76185]
[1739465823502,4.3829,2625.0,2624.9,0.76182]
[1739465823696,0.5725,2625.0,2624.9,0.76182]
[1739465824200,0.00571897,2625.1,2625.0,0.76179]
[1739465824397,0.00571897,2625.1,2624.9,40.8]
[1739465824594,0.00571897,2625.1,2625.0,0.76179]
[1739465824894,0.00571897,2625.1,2625.0,3.87702307]
[1739465825101,0.00571897,2625.1,2625.0,4.43532307]
[1739465826602,0.76181,2625.0,2624.9,0.76181]
[1739465826796,0.00571897,2625.1,2624.7,3.11523307]
[1739465826995,3.7665,2625.0,2624.7,3.11523307]
[1739465827196,3.7665,2625.0,2624.4,3.11523307]
[1739465827401,0.7619,2624.7,2624.6,0.7619]
[1739465827695,0.76193,2624.6,2624.5,0.76192]
[1739465827888,0.76193,2624.5,2624.4,3.87716307]
[1739465828091,0.553,2624.6,2624.4,3.11523307]
[1739465828299,8.379,2624.6,2623.5,3.11523307]
[1739465828599,0.76224,2623.5,2623.2,0.76231]
[1739465828799,3.2078,2623.7,2623.2,0.76229]
[1739465828995,0.76229,2623.3,2623.1,1.33234]
[1739465829202,3.7543,2623.4,2623.0,3.2078]
[1739465829699,3.7543,2623.4,2623.2,0.7623]
[1739465830096,3.7543,2623.4,2623.0,3.2078]
[1739465830701,0.7623,2623.3,2623.0,3.97016]
[1739465830901,3.7543,2623.4,2623.0,3.2078]
[1739465831104,4.51657,2623.4,2623.1,0.76233]
[1739465831304,0.76228,2623.3,2623.0,3.97015]
[1739465831501,3.2078,2623.1,2622.9,0.00571897]
[1739465831692,1.36567,2623.0,2622.9,0.00571897]
[1739465831898,0.6033,2623.0,2621.9,3.99142017]
[1739465832098,1.826,2622.9,2622.2,3.99142017]
[1739465832299,1.826,2622.9,2622.6,0.76248]
[1739465832495,3.2078,2622.7,2622.2,40.8]
[1739465832798,3.97027,2622.7,2622.3,0.76255]
[1739465833102,0.76252,2622.5,2622.2,41.56258]
[1739465833305,3.2078,2622.7,2622.3,0.76256]
[1739465833509,3.2078,2622.7,2622.2,40.8]
[1739465833510,3.2078,2622.7,2622.4,0.76252]
[1739465833706,3.2078,2622.7,2622.2,44.79142017]
[1739465834008,1.826,2622.9,2622.7,0.76244]
[1739465834209,1.826,2622.9,2622.2,44.79142017]
[1739465834407,3.2078,2622.7,2622.2,44.79142017]
[1739465834609,3.2078,2622.7,2622.2,40.8]
[1739465835511,0.76257,2622.3,2622.1,3.2078]
[1739465836108,3.2078,2622.3,2621.8,4.3395]
[1739465836407,0.76272,2621.8,2621.5,3.2078]
[1739465836616,0.7627,2621.9,2621.6,0.76277]
[1739465836909,0.76842897,2621.9,2621.6,0.76276]
[1739465837206,0.76842897,2621.9,2621.5,40.8]
[1739465837207,3.97056,2621.7,2621.1,1.134]
[1739465837412,3.2078,2621.7,2621.5,0.7628]
[1739465837608,0.00571897,2621.9,2621.3,7.19922017]
[1739465837809,3.2078,2621.8,2621.3,7.19922017]
[1739465838010,0.76277,2621.7,2621.3,7.19922017]
[1739465838206,0.76285,2621.4,2621.1,1.134]
[1739465838412,3.97063,2621.5,2621.2,0.76288]
[1739465838610,3.2078,2621.5,2621.2,0.76287]
[1739465838814,3.2078,2621.5,2621.4,0.76283]
[1739465839010,3.2078,2621.8,2621.3,3.99142017]
[1739465839210,3.2078,2621.8,2621.7,0.76275]
[1739465840213,0.00571897,2621.9,2621.4,0.5665]
[1739465840511,0.00571897,2621.9,2621.8,0.76272]
[1739465840714,0.00571897,2621.9,2621.8,3.97052]
[1739465841114,0.00571897,2621.9,2621.8,0.76272]
[1739465842609,0.00571897,2621.9,2621.8,41.56272]
[1739465846014,0.00571897,2621.9,2621.8,44.77052]
[1739465846316,3.97036,2622.4,2621.8,45.91457]
[1739465846612,3.2078,2622.4,2622.3,0.76257]
[1739465846821,3.2078,2622.7,2622.2,5.89787017]
[1739465847012,3.2078,2622.7,2622.1,3.2078]
[1739465847013,3.2078,2622.7,2622.3,1.1873]
[1739465847214,3.97026,2622.7,2622.6,0.76249]
[1739465847410,3.2078,2622.7,2622.3,1.1873]
[1739465847616,3.97026,2622.7,2622.6,0.76249]
[1739465847812,3.2078,2622.7,2622.6,0.76249]
[1739465848118,0.00571897,2622.8,2622.7,0.76246]
[1739465848521,0.00571897,2622.8,2622.7,3.97026]
[1739465850917,2.05015,2623.3,2623.2,0.76231]
[1739465854120,2.05015,2623.3,2623.2,4.75373017]
[1739465854323,0.69943,2623.3,2623.2,4.75373017]
[1739465854723,0.00571897,2623.5,2623.2,3.99142017]
[1739465854917,8.97e-06,2623.5,2623.4,0.76225]
[1739465855420,0.28555236,2624.5,2623.4,0.76225]
[1739465855421,3.2078,2624.8,2623.7,1.90537]
[1739465855622,3.2078,2624.8,2623.5,1.90554]
[1739465855623,3.2078,2624.8,2624.0,3.99142017]
[1739465856025,3.2078,2624.5,2623.8,1.1706]
[1739465856228,0.6038,2624.4,2624.3,0.76199]
[1739465856821,1.83171897,2624.6,2624.1,0.00571897]
[1739465857028,1.83171897,2624.6,2624.5,0.76193]
[1739465857326,0.00571897,2624.6,2624.5,0.76193]
[1739465860728,0.00571897,2624.6,2624.5,1.35643]
[1739465860926,0.00571897,2624.6,2624.5,1.92673]
[1739465864327,8.97e-06,2624.6,2624.5,1.92673]
[1739465865228,8.97e-06,2624.6,2624.5,7.92673]
[1739465866334,3.2078,2625.7,2624.5,47.9648]
[1739465866626,3.96941,2625.7,2625.6,0.76161]
[1739465867335,3.2078,2625.7,2625.0,3.2078]
[1739465867527,1.90404,2625.6,2625.2,0.76172]
[1739465867828,0.5472,2625.6,2625.0,1.90443]
[1739465868029,0.5672,2625.5,2625.4,0.76166]
[1739465868432,1.32884,2625.5,2625.4,0.76166]
[1739465868630,0.00571897,2625.9,2625.8,0.76156]
[1739465868831,1.33446897,2625.9,2625.8,0.76156]
[1739465869027,0.57291897,2625.9,2625.8,0.76156]
[1739465869735,1.33444897,2625.9,2625.8,0.76156]
[1739465869928,0.57291897,2625.9,2625.8,0.76156]
[1739465870731,0.57291897,2625.9,2625.6,0.00571897]
[1739465870926,3.96939,2625.7,2625.6,0.00571897]
[1739465871333,3.96939,2625.7,2625.6,0.76732897]
[1739465871937,3.96939,2625.7,2625.6,0.00571897]
[1739465872534,3.96938,2625.7,2625.6,0.76732897]
[1739465872839,3.96939,2625.7,2625.6,0.76732897]
[1739465873032,3.2078,2625.7,2625.6,0.76732897]
[1739465874336,3.96939,2625.7,2625.6,0.00571897]
[1739465874538,0.76178,2625.1,2625.0,0.76175]
[1739465874839,0.76175,2625.2,2625.1,0.76174]
[1739465875733,1.31235,2625.2,2625.1,0.76174]
[1739465876132,1.31233,2625.2,2625.1,0.76174]
[1739465876638,0.5506,2625.2,2625.1,0.76174]
[1739465876835,1.31233,2625.2,2625.1,0.76174]
[1739465877035,0.5506,2625.2,2625.1,0.76174]
[1739465877235,0.5936,2625.6,2624.9,0.00571897]
[1739465877434,1.1465,2625.6,2625.5,0.76164]
[1739465877636,0.5529,2625.6,2625.5,0.76164]
[1739465878528,1.31451,2625.6,2625.5,0.76164]
[1739465878729,0.5529,2625.6,2625.2,2.45507]
[1739465878938,1.31455,2625.6,2625.5,0.76164]
[1739465879333,1.31455,2625.6,2625.2,2.45507]
[1739465879334,0.76166,2625.5,2625.1,1.90434]
[1739465879529,1.31454,2625.6,2625.5,0.76164]
[1739465880137,0.5529,2625.6,2625.5,0.76164]
[1739465880537,3.2078,2625.7,2625.6,0.76161]
[1739465881343,3.2078,2625.7,2625.3,1.1926]
[1739465881643,3.2078,2625.7,2625.6,0.76161]
[1739465881644,3.9694,2625.7,2625.6,0.76161]
[1739465882037,0.76164,2625.6,2625.5,0.76163]
[1739465882237,1.32874,2625.6,2625.5,0.76163]
[1739465882638,1.32871,2625.6,2625.5,0.76163]
[1739465882838,0.5671,2625.6,2625.5,0.76163]
[1739465883047,3.2078,2625.7,2625.6,0.76161]
[1739465883239,3.96939,2625.7,2625.6,0.76161]
[1739465883637,3.2078,2625.7,2625.6,0.76161]
[1739465884033,0.00571897,2625.9,2625.8,0.76156]
[1739465884234,3.2078,2626.6,2626.5,0.76135]
[1739465884440,0.76129,2626.8,2626.6,0.76131]
[1739465884645,3.96912,2626.7,2626.3,0.5469]
[1739465884843,3.2078,2626.7,2626.5,0.76133]
[1739465885043,3.2078,2626.7,2626.3,1.3083]
[1739465885242,0.76151,2626.0,2625.8,3.99142017]
[1739465885445,3.2078,2626.1,2625.2,3.99142017]
[1739465885649,0.00571897,2626.8,2625.6,0.00571897]
[1739465885650,3.2078,2625.7,2625.6,0.00571897]
[1739465885841,3.9694,2625.7,2625.6,0.00571897]
[1739465886543,11.32584636,2625.7,2624.9,0.5751]
[1739465886849,3.2078,2625.2,2624.9,0.5751]
[1739465887043,0.76179,2625.0,2624.9,0.5751]
[1739465887255,3.2078,2625.2,2624.9,0.5751]
[1739465887544,3.2078,2625.2,2624.6,3.99142017]
[1739465887750,0.7618,2625.0,2624.8,0.00571897]
[1739465888047,0.76178,2625.1,2624.9,0.76181]
[1739465888245,3.2078,2625.2,2624.8,0.00571897]
[1739465888448,3.2078,2625.2,2625.1,0.76176]
[1739465888641,3.2078,2625.2,2624.8,0.00571897]
[1739465888642,0.00571897,2625.3,2624.9,3.99142017]
[1739465888945,0.00571897,2625.3,2624.8,0.00571897]
[1739465889247,0.76173,2625.2,2625.0,0.76177]
[1739465889449,3.2078,2625.2,2624.8,0.00571897]
[1739465889648,0.76177,2625.1,2624.9,0.76181]
[1739465889846,3.2078,2625.2,2624.8,0.00571897]
[1739465890041,0.76177,2625.1,2624.9,0.76181]
[1739465890241,0.76182,2624.9,2624.8,0.00571897]
[1739465890846,3.96962,2624.9,2624.8,0.00571897]
[1739465891050,13.96104017,2624.9,2624.1,3.2078]
[1739465891348,0.76197,2624.4,2624.2,0.76202]
[1739465891549,0.76199,2624.3,2624.1,3.2078]
[1739465891952,0.76198,2624.4,2624.1,3.2078]
[1739465892149,5.79272,2624.6,2624.2,0.762]
[1739465892648,5.79272,2624.6,2624.1,3.2078]
[1739465892649,3.2078,2624.6,2624.1,3.2078]
[1739465892952,3.2078,2624.6,2624.2,0.762]
[1739465893148,0.76199,2624.3,2624.1,3.96983]
[1739465893347,0.76199,2624.3,2624.2,0.76202]
[1739465893545,3.2078,2624.6,2624.1,3.2078]
[1739465893747,0.76204,2624.2,2624.0,0.76207]
[1739465893949,3.2078,2624.3,2623.9,1.16191897]
[1739465894252,0.76202,2624.2,2623.9,1.16191897]
[1739465894453,3.2078,2624.3,2623.9,1.92401897]
[1739465894645,3.2078,2624.3,2623.9,1.16191897]
[1739465894852,0.76202,2624.2,2624.1,0.76203]
[1739465895253,0.76202,2624.2,2624.0,0.76206]
[1739465895551,3.96981,2624.3,2624.1,0.76205]
[1739465895751,0.76204,2624.2,2624.0,0.76206]
[1739465895952,0.76204,2624.2,2623.9,1.16191897]
[1739465896252,3.2078,2624.3,2623.9,1.16191897]
[1739465896450,0.76208,2624.1,2623.9,1.92400897]
[1739465896750,0.76208,2624.0,2623.9,0.58561897]
[1739465897446,3.8115,2624.3,2624.0,0.76205]
[1739465897647,0.76208,2624.0,2623.9,1.34770897]
[1739465897848,0.76202,2624.2,2624.1,0.76203]
[1739465898048,0.76202,2624.2,2623.9,0.58561897]
[1739465898049,3.2078,2624.3,2623.9,0.58561897]
[1739465898246,3.7592,2624.6,2624.0,44.79142017]
[1739465898447,3.7592,2624.6,2624.0,45.55348017]
[1739465898448,0.76205,2624.1,2624.0,45.55348017]
[1739465898650,0.76205,2624.1,2624.0,44.79142017]
[1739465898853,0.76208,2624.0,2623.9,0.58561897]
[1739465899055,0.76208,2624.0,2623.9,1.34772897]
[1739465899551,0.76208,2624.0,2623.9,0.58561897]
[1739465899754,3.96988,2624.0,2623.9,0.00571897]
[1739465900649,3.96988,2624.0,2623.9,0.76782897]
[1739465900854,3.2078,2624.0,2623.9,0.76782897]
[1739465901057,3.96988,2624.0,2623.9,0.76782897]
[1739465901251,3.96988,2624.0,2623.9,0.00571897]
[1739465901456,3.2078,2624.0,2623.9,0.76782897]
[1739465902252,0.76203,2624.2,2624.1,0.76202]
[1739465902458,3.9698,2624.3,2624.2,0.76202]
[1739465902757,3.2078,2624.3,2624.2,0.76202]
[1739465902959,4.52111,2624.6,2624.5,0.76193]
[1739465903254,0.76195,2624.5,2624.4,0.76193]
[1739465903452,3.7592,2624.6,2624.0,5.113]
[1739465903650,4.52112,2624.6,2624.5,0.76193]
[1739465903851,3.7592,2624.6,2624.5,0.76193]
[1739465904152,3.2078,2624.6,2624.5,0.76193]
[1739465904352,3.2078,2624.9,2624.8,0.76185]
[1739465905960,3.96962,2624.9,2624.8,0.76185]
[1739465906156,3.2078,2624.9,2624.3,7.76122017]
[1739465906459,0.76191,2624.6,2624.5,0.76191]
[1739465906847,3.2078,2624.9,2624.3,7.76122017]
[1739465907055,0.76188,2624.7,2624.6,0.7619]
[1739465907258,0.76188,2624.7,2624.3,7.76122017]
[1739465907466,3.2078,2624.9,2624.8,0.76185]
[1739465907761,3.2078,2625.2,2625.1,0.76176]
[1739465907954,3.2078,2625.2,2624.6,3.99142017]
[1739465908266,0.7618,2625.0,2624.9,0.7618]
[1739465908564,0.76177,2625.1,2625.0,0.76176]
[1739465909053,3.2078,2625.2,2625.1,0.76176]
[1739465909855,3.2078,2625.2,2624.3,3.99142017]
[1739465910059,0.76196,2624.5,2624.4,0.5626]
[1739465910562,0.76193,2624.5,2624.4,1.32454]
[1739465910964,0.76193,2624.5,2624.4,0.5626]
[1739465911158,0.76193,2624.5,2624.4,0.76196]
[1739465911356,3.2078,2624.7,2624.2,0.5666]
[1739465911666,0.76202,2624.2,2624.1,0.5626]
[1739465911848,0.76205,2624.1,2624.0,1.87883]
[1739465912053,3.96985,2624.1,2624.0,1.87883]
[1739465914363,3.96985,2624.1,2624.0,2.64091]
[1739465914564,3.96985,2624.1,2624.0,1.87883]
[1739465919966,3.96985,2624.1,2624.0,0.38672259]
[1739465920167,0.76208,2624.0,2623.9,0.00571897]
[1739465920365,1.33768,2624.0,2623.9,0.00571897]
[1739465927768,3.96987,2624.1,2624.0,0.76208]
[1739465928077,3.2078,2624.1,2624.0,0.76208]
[1739465928674,3.2078,2624.4,2624.3,0.76199]
[1739465929074,3.2078,2624.4,2624.2,0.5789]
[1739465929372,0.76199,2624.3,2624.2,0.5789]
[1739465930377,3.2078,2624.4,2624.2,0.5789]
[1739465930378,3.96979,2624.4,2624.3,0.76199]
[1739465930577,3.2078,2624.4,2624.2,0.5789]
[1739465930777,3.2078,2624.4,2624.3,0.76199]
[1739465930978,3.2078,2624.7,2624.6,0.7619]
[1739465933981,3.96969,2624.7,2624.5,1.34301]
[1739465934477,3.2078,2624.7,2624.5,0.5811]
[1739465934673,3.96969,2624.7,2624.5,0.5811]
[1739465934874,3.2078,2624.7,2624.2,0.5789]
[1739465935076,3.2078,2624.4,2624.2,0.5789]
[1739465935278,3.2078,2624.4,2624.3,0.76199]
[1739465935670,1.1641,2625.0,2624.2,2.48392]
[1739465935671,3.2078,2624.8,2624.2,2.48392]
[1739465935876,3.96966,2624.8,2624.7,0.76188]
[1739465936076,0.76189,2624.7,2624.6,0.7619]
[1739465936382,3.2078,2624.8,2624.7,0.76188]
[1739465937977,0.76191,2624.6,2624.5,0.76192]
[1739465938385,3.2078,2624.8,2624.2,0.5789]
[1739465938386,0.76189,2624.7,2624.6,0.76188]
[1739465938578,3.2078,2624.8,2624.3,1.90499]
[1739465938579,3.96967,2624.8,2624.7,0.76188]
[1739465938778,3.2078,2624.8,2624.7,0.76188]
[1739465940686,0.76189,2624.7,2624.6,0.76188]
[1739465940878,3.96966,2624.8,2624.7,0.76188]
[1739465941078,3.2078,2624.8,2624.7,0.76188]
[1739465942786,3.2078,2625.1,2625.0,0.76179]
[1739465943080,0.00571897,2625.3,2625.2,0.76173]
[1739465943688,3.2078,2625.7,2625.6,0.76161]
[1739465944181,3.2078,2626.1,2625.6,0.76161]
[1739465944386,3.2078,2626.1,2625.7,1.1167]
[1739465944786,0.76151,2626.0,2625.9,0.76152]
[1739465944986,3.2078,2626.1,2625.7,1.1167]
[1739465945489,3.2078,2626.1,2626.0,0.7615]
[1739465945683,3.2078,2626.1,2625.7,1.1167]
[1739465946084,0.76151,2626.0,2625.8,0.76153]
[1739465946390,3.2078,2626.1,2625.7,1.1167]
[1739465946588,3.96936,2625.8,2625.7,1.1167]
[1739465946988,3.2078,2625.8,2625.7,0.76159]
[1739465947196,3.96937,2625.8,2625.7,0.76159]
[1739465947790,3.2078,2625.8,2625.6,0.00571897]
[1739465947992,3.2078,2625.8,2625.7,0.76159]
[1739465948490,0.76159,2625.7,2625.6,0.00571897]
[1739465948890,3.2078,2625.8,2625.6,0.00571897]
[1739465949190,0.76159,2625.7,2625.6,0.00571897]
[1739465949392,3.96938,2625.8,2625.6,0.76731897]
[1739465949588,3.2078,2625.8,2625.7,0.76159]
[1739465952389,3.2078,2625.8,2625.6,0.00571897]
[1739465952390,3.2078,2626.1,2626.0,0.7615]
[1739465952992,3.96927,2626.1,2626.0,0.7615]
[1739465954187,3.2078,2626.1,2625.9,1.1193]
[1739465954387,0.7615,2626.0,2625.9,0.76152]
[1739465954787,3.2078,2626.1,2625.6,3.02905897]
[1739465955093,3.96929,2626.1,2626.0,0.7615]
[1739465955402,3.2078,2626.1,2626.0,0.7615]
[1739465956387,3.96927,2626.1,2626.0,0.7615]
[1739465956787,3.2078,2626.1,2626.0,0.7615]
[1739465956997,0.00571897,2626.2,2626.1,0.76147]
[1739465957395,8.97e-06,2626.2,2626.1,0.76147]
[1739465957594,8.97e-06,2626.2,2626.1,41.56147]
[1739465960799,8.97e-06,2626.2,2626.1,0.76147]
[1739465963301,8.97e-06,2626.2,2626.1,6.76147]
[1739465964002,8.97e-06,2626.2,2626.1,47.56147]
[1739465964200,3.2078,2627.2,2626.1,47.56147]
[1739465964201,3.2078,2627.2,2627.1,0.76118]